bitfinex/quotes_ETHUSD_20220106
["timestamp","ask_amount","ask_price","bid_price","bid_amount"]
[1641436137340,0.6522737,3505.1,3504.7,1.60170527]
[1641436137840,0.6522737,3505.1,3504.7,0.60170527]
[1641436138044,0.6522737,3505.1,3504.7,0.30170527]
[1641436138247,0.6522737,3505.1,3504.7,0.00170527]
[1641436138696,0.6522737,3505.1,3504.6,0.0022737]
[1641436139092,0.71326,3504.9,3504.6,0.0022737]
[1641436140095,0.71326,3504.9,3503.0,0.23652112]
[1641436140096,7.53552319,3503.2,3503.0,0.23652112]
[1641436140304,0.74431906,3503.0,3502.8,1.2837851]
[1641436140500,0.74431906,3503.0,3502.6,0.71690412]
[1641436140693,8.15,3502.9,3502.6,0.71690412]
[1641436141295,8.495,3502.9,3502.6,0.71690412]
[1641436142640,8.50714348,3502.9,3502.5,4.2669507]
[1641436142841,9.22092468,3502.9,3502.5,4.2669507]
[1641436143044,1.07092468,3502.9,3501.8,4.8824595]
[1641436143248,0.01250471,3502.7,3501.8,4.8824595]
[1641436143851,0.01250471,3502.7,3502.6,0.01136847]
[1641436144051,0.01250471,3502.7,3501.2,1.02676577]
[1641436144052,6.55,3502.6,3501.2,0.91876577]
[1641436144347,6.55,3502.6,3501.3,0.01875797]
[1641436144348,2.37290338,3502.5,3501.3,0.01875797]
[1641436144552,0.714,3502.1,3501.3,0.01875797]
[1641436144746,0.345,3502.0,3501.3,0.01875797]
[1641436144948,0.7140232,3501.7,3501.3,0.01875797]
[1641436145148,0.345,3501.6,3501.3,0.01875797]
[1641436145547,0.71398,3501.5,3501.3,0.01875797]
[1641436145748,0.345,3501.4,3501.3,0.01875797]
[1641436146391,0.345,3501.4,3501.2,0.55431747]
[1641436146592,0.345,3501.4,3501.1,6.8822474]
[1641436146797,0.01136847,3501.3,3501.1,6.8822474]
[1641436146993,0.01136847,3501.3,3501.2,10.53313956]
[1641436147197,0.345,3502.4,3501.2,11.53313956]
[1641436147393,0.345,3502.4,3501.2,11.64113956]
[1641436147595,0.01477901,3501.9,3501.8,1.44713665]
[1641436147795,0.01477901,3501.9,3501.6,1.06965787]
[1641436147995,0.72855901,3501.9,3501.1,7.1822474]
[1641436148197,0.01421059,3501.8,3501.1,7.1822474]
[1641436148596,0.01364216,3501.7,3501.1,7.1822474]
[1641436148797,1.2537007,3501.4,3501.1,7.1822474]
[1641436148997,0.01307374,3501.6,3501.1,7.1822474]
[1641436149197,0.01136847,3501.3,3501.1,7.1822474]
[1641436149397,0.01250532,3501.5,3501.2,1.16187238]
[1641436149598,0.01080005,3501.2,3501.1,7.1822474]
[1641436149801,0.01193689,3501.4,3501.1,7.1822474]
[1641436150044,0.01080005,3501.2,3501.1,7.1822474]
[1641436150243,0.345,3502.4,3501.1,4.4122474]
[1641436150244,0.00253873,3501.3,3501.1,4.4122474]
[1641436150546,0.00197031,3501.2,3501.1,5.4122474]
[1641436150745,0.00197031,3501.2,3501.1,1.0122474]
[1641436151748,0.00197031,3501.2,3501.1,2.3109967]
[1641436152149,0.00197031,3501.2,3501.1,5.8109967]
[1641436152352,0.00197031,3501.2,3501.1,2.3109967]
[1641436152549,0.00197031,3501.2,3501.1,2.6109967]
[1641436152849,0.00197031,3501.2,3501.1,5.1560191]
[1641436153150,0.00197031,3501.2,3501.1,9.06480765]
[1641436153351,0.00197031,3501.2,3501.1,9.06560765]
[1641436153550,0.00197031,3501.2,3501.1,9.07329628]
[1641436153810,0.00197031,3501.2,3501.1,98.0256225]
[1641436154105,0.00197031,3501.2,3501.1,97.07041773]
[1641436154306,0.00197031,3501.2,3501.1,97.07168664]
[1641436154505,0.00197031,3501.2,3501.1,97.0371287]
[1641436154707,0.00197031,3501.2,3501.1,81.44037382]
[1641436154911,0.00197031,3501.2,3501.1,84.4965967]
[1641436155108,0.00197031,3501.2,3501.1,86.6949967]
[1641436155309,0.00197031,3501.2,3501.1,54.5909967]
[1641436155509,0.00197031,3501.2,3501.1,49.8385967]
[1641436155711,0.00197031,3501.2,3501.1,41.11362094]
[1641436155910,0.00197031,3501.2,3501.1,14.11362094]
[1641436156112,0.00197031,3501.2,3501.1,13.91362094]
[1641436156310,0.00197031,3501.2,3501.1,0.71362094]
[1641436156711,0.00197031,3501.2,3501.1,1.79461696]
[1641436157111,0.00197031,3501.2,3501.1,5.97895333]
[1641436157313,0.00197031,3501.2,3501.1,3.07895333]
[1641436157542,0.00197031,3501.2,3501.1,1.79461696]
[1641436157738,0.00197031,3501.2,3501.1,0.71362094]
[1641436160946,0.30197031,3501.2,3501.1,0.71362094]
[1641436161791,0.30197031,3501.2,3501.1,0.66362094]
[1641436162595,0.26449186,3501.2,3501.1,0.66362094]
[1641436162790,0.26449186,3501.2,3500.1,2.60024126]
[1641436162791,6.1,3501.1,3500.1,2.60024126]
[1641436162995,0.012865,3500.9,3500.1,2.60024126]
[1641436163294,2.1426708,3500.7,3500.2,0.00371393]
[1641436163496,0.345,3500.6,3500.2,0.00371393]
[1641436164092,1.77335,3500.6,3500.2,0.00371393]
[1641436164293,2.1426575,3500.4,3500.1,2.30395519]
[1641436164496,0.71424,3500.3,3500.1,2.30395519]
[1641436165338,2.07658396,3500.3,3500.1,2.30395519]
[1641436165538,2.07658396,3500.3,3500.1,2.25395519]
[1641436165941,10.48807143,3500.2,3500.1,2.25395519]
[1641436166140,10.48807143,3500.2,3500.0,86.18157574]
[1641436166141,8.1,3500.1,3500.0,86.18157574]
[1641436166340,2.68802369,3500.1,3500.0,68.12969574]
[1641436166540,6.21359537,3500.0,3497.8,0.1144]
[1641436166746,6.21359537,3500.0,3498.3,1.65966387]
[1641436166747,0.01207417,3499.1,3498.3,1.65966387]
[1641436166948,0.01266688,3498.4,3498.3,1.65966387]
[1641436167145,0.71334925,3498.4,3498.3,1.65966387]
[1641436167346,1.01334925,3498.4,3497.7,1.76852559]
[1641436167549,0.01219985,3497.8,3497.6,0.45]
[1641436167751,0.01219985,3497.8,3496.2,0.03865634]
[1641436167752,2.20319206,3497.2,3495.9,0.84129907]
[1641436167947,2.20319206,3497.2,3496.7,4.20851215]
[1641436167948,2.51308853,3496.8,3496.7,4.20851215]
[1641436168147,2.51308853,3496.8,3495.9,0.84129907]
[1641436168148,2.84587557,3496.8,3496.6,1.23976297]
[1641436168348,0.35568237,3496.7,3496.6,1.23976297]
[1641436168547,1.31728237,3496.7,3496.6,0.80466297]
[1641436168794,0.35568237,3496.3,3495.3,2.1539725]
[1641436169010,5.29121766,3496.7,3495.3,2.1539725]
[1641436169011,0.35568237,3495.9,3495.3,2.1539725]
[1641436169199,0.70068237,3495.9,3495.4,0.00682109]
[1641436169399,0.70068237,3495.9,3495.5,1.4660891]
[1641436169602,0.70068237,3495.9,3495.5,1.4160891]
[1641436169800,0.70068237,3495.9,3495.7,1.06416861]
[1641436169801,0.90068237,3495.9,3495.7,1.06416861]
[1641436170204,0.90068237,3495.9,3495.8,3.05454739]
[1641436170405,35.2506186,3495.9,3495.8,0.00454739]
[1641436170606,35.2506186,3495.9,3495.7,1.018716]
[1641436171001,35.0506186,3495.9,3495.7,1.018716]
[1641436171201,35.3506186,3495.9,3495.7,1.018716]
[1641436171405,35.0506186,3495.9,3495.7,1.018716]
[1641436171603,0.0166,3495.8,3495.7,1.018716]
[1641436171803,0.71728237,3495.8,3495.7,8.318716]
[1641436172003,0.71728237,3495.8,3495.7,1.018716]
[1641436172460,1.01728237,3495.8,3495.7,1.018716]
[1641436172653,0.71728237,3495.8,3495.7,1.018716]
[1641436172853,0.71728237,3495.8,3495.7,5.47067227]
[1641436173057,0.71728237,3495.8,3495.7,1.02067227]
[1641436173855,0.345,3496.7,3495.7,1.02067227]
[1641436174055,2.19250969,3497.2,3495.7,1.73747227]
[1641436174256,2.19250969,3497.2,3495.8,0.1128]
[1641436174257,0.00454739,3496.6,3495.8,0.1128]
[1641436174455,0.0073895,3497.1,3495.8,1.1144]
[1641436174657,7.896e-05,3496.5,3495.9,2.03083714]
[1641436174856,3.7648,3499.1,3496.0,8.77824665]
[1641436175056,3.7648,3499.1,3496.7,1.0]
[1641436175057,0.01286177,3498.9,3496.7,1.0]
[1641436175256,0.01286177,3498.9,3496.1,2.33083714]
[1641436175257,0.00341054,3497.1,3496.4,0.345]
[1641436175662,0.00284212,3497.0,3496.4,0.645]
[1641436175855,0.00284212,3497.0,3496.8,2.30330195]
[1641436176061,0.01286177,3498.9,3496.9,8.35]
[1641436176295,0.01291387,3499.2,3497.0,10.72583714]
[1641436176496,0.01023162,3498.7,3497.1,16.68]
[1641436176697,0.01291387,3499.2,3497.1,16.68]
[1641436176698,0.01250531,3499.1,3497.2,1.345]
[1641436176998,0.01193689,3499.0,3498.3,1.32017861]
[1641436177197,0.01193689,3499.0,3498.4,1.21032214]
[1641436177397,0.01136847,3498.9,3498.4,1.21032214]
[1641436177797,0.01080004,3498.8,3498.4,1.51032214]
[1641436178202,0.01250531,3499.1,3498.4,1.21032214]
[1641436178698,0.01193689,3499.0,3498.9,1.34336792]
[1641436179500,5.09134958,3500.0,3498.9,1.34336792]
[1641436179501,5.09134958,3500.0,3499.0,8.35]
[1641436179700,5.09134958,3500.0,3499.1,3.23580377]
[1641436179940,0.00511581,3499.9,3499.2,1.0]
[1641436180244,0.345,3501.5,3499.5,8.35]
[1641436180441,0.345,3501.5,3501.0,1.35385496]
[1641436180645,20.0,3501.6,3501.0,1.35385496]
[1641436180646,20.0,3501.6,3501.1,1.17168941]
[1641436181044,0.00909478,3501.5,3501.1,1.17168941]
[1641436181243,0.00909478,3501.5,3499.8,1.0]
[1641436181445,21.42309363,3501.6,3498.5,1.0]
[1641436181446,8.35,3501.3,3498.5,1.0]
[1641436181645,0.00144619,3499.9,3498.6,8.35]
[1641436181845,0.00144619,3499.9,3498.6,8.35568423]
[1641436182046,0.00113685,3499.8,3498.6,8.35568423]
[1641436182245,0.00113685,3499.8,3499.3,1.25562641]
[1641436182445,0.96379055,3500.8,3499.4,8.35]
[1641436182645,0.96379055,3500.8,3499.4,9.46135349]
[1641436182845,0.00511581,3500.7,3499.4,1.10907979]
[1641436183054,0.00682108,3500.7,3499.4,1.10907979]
[1641436183247,0.00625265,3500.6,3499.6,0.00136394]
[1641436183691,0.00568423,3500.5,3499.6,0.00136394]
[1641436183889,0.00568423,3500.5,3500.2,1.17924792]
[1641436184090,0.00511581,3500.4,3500.3,4.97939777]
[1641436184492,0.00511581,3500.4,3500.3,1.07939777]
[1641436184697,4.60511581,3500.4,3500.3,1.07939777]
[1641436184893,0.00511581,3500.4,3500.3,1.07939777]
[1641436187098,0.00511581,3500.4,3500.3,0.37939777]
[1641436187298,20.0,3501.6,3500.4,25.0351]
[1641436187547,20.0,3501.6,3500.4,25.3351]
[1641436187747,0.00625266,3501.5,3500.4,8.6551]
[1641436187946,0.00625266,3501.5,3500.5,1.00832564]
[1641436188147,0.00568423,3501.4,3500.6,0.7137]
[1641436188547,0.00511581,3501.3,3500.7,0.3]
[1641436188952,0.00454739,3501.2,3500.7,0.3]
[1641436189150,0.00454739,3501.2,3500.8,1.18272774]
[1641436189350,20.0,3501.6,3500.8,1.18272774]
[1641436189752,0.00625266,3501.5,3500.8,1.18272774]
[1641436190152,20.0,3501.6,3500.8,1.18272774]
[1641436190153,0.00568423,3501.4,3500.8,1.18272774]
[1641436190354,0.00568423,3501.4,3500.8,2.54606699]
[1641436190654,0.00511581,3501.3,3500.8,2.54606699]
[1641436191054,0.00454739,3501.2,3500.8,2.54606699]
[1641436191496,0.00397896,3501.1,3500.8,2.84606699]
[1641436191699,0.00397896,3501.1,3500.8,2.79606699]
[1641436191899,0.00341054,3501.0,3500.8,2.54606699]
[1641436192300,0.00284212,3500.9,3500.8,1.54606699]
[1641436192699,0.00284212,3500.9,3500.8,6.54606699]
[1641436192900,0.00284212,3500.9,3500.8,6.84606699]
[1641436193501,0.00284212,3500.9,3499.7,0.21418]
[1641436193502,0.00284212,3500.9,3500.2,1.1586138]
[1641436193902,0.00227369,3500.8,3500.3,1.33412717]
[1641436194102,0.01230987,3501.5,3500.9,0.00110338]
[1641436194300,20.0,3501.6,3500.9,0.00110338]
[1641436194501,20.0,3501.6,3501.0,0.345]
[1641436194502,0.00341054,3501.4,3501.0,0.345]
[1641436194801,4.53961004,3503.4,3501.3,0.01255625]
[1641436195042,4.53961004,3503.4,3502.8,1.31963819]
[1641436195244,3.8116,3504.2,3502.8,1.31963819]
[1641436195245,0.00852635,3502.9,3502.8,1.38160158]
[1641436195642,0.01261639,3503.6,3502.8,1.38160158]
[1641436196043,0.0119369,3503.5,3502.8,1.38160158]
[1641436196447,0.01136847,3503.4,3502.8,1.38160158]
[1641436196842,0.01080005,3503.3,3502.8,1.38160158]
[1641436197246,0.01023162,3503.2,3502.8,0.38160158]
[1641436197645,0.0096632,3503.1,3502.8,0.38160158]
[1641436197846,0.0096632,3503.1,3502.8,0.37506269]
[1641436198049,0.00909478,3503.0,3502.8,0.37506269]
[1641436198449,0.0119369,3503.5,3503.4,1.0850268]
[1641436200291,1.0850268,3502.7,3501.1,2.41970527]
[1641436200490,0.01228849,3502.5,3501.1,0.00170527]
[1641436200689,1.35728849,3502.5,3501.1,0.00170527]
[1641436200890,2.6824962,3502.4,3501.1,0.00170527]
[1641436201089,3.2824962,3502.4,3501.1,0.00170527]
[1641436201292,1.75561366,3502.3,3501.1,0.00170527]
[1641436201490,3.29049356,3502.2,3501.1,0.00170527]
[1641436201694,0.01229834,3501.7,3501.1,0.00170527]
[1641436201991,0.645,3501.6,3501.1,0.00170527]
[1641436202452,0.645,3501.6,3501.4,1.39118985]
[1641436202842,0.645,3501.6,3501.4,1.38272199]
[1641436203047,1.0,3501.5,3501.4,1.38272199]
[1641436203246,1.345,3501.5,3501.4,1.38272199]
[1641436203445,0.5,3502.2,3501.4,1.38272199]
[1641436203446,1.0850268,3502.7,3501.4,1.38272199]
[1641436203647,0.345,3502.6,3501.4,1.38272199]
[1641436204046,0.345,3502.6,3501.5,1.34401596]
[1641436204350,0.345,3502.6,3502.5,1.18276816]
[1641436205550,3.85182108,3502.6,3502.5,1.18276816]
[1641436206194,0.65182108,3502.6,3502.5,1.18276816]
[1641436206392,0.65182108,3502.6,3501.5,1.34401596]
[1641436206593,1.0,3502.2,3500.9,0.00110338]
[1641436206793,0.345,3502.1,3500.9,0.00110338]
[1641436206997,0.345,3502.1,3501.0,0.00227369]
[1641436206998,0.34897897,3502.1,3501.0,0.00227369]
[1641436207194,0.00341054,3502.0,3501.0,0.00227369]
[1641436207395,0.00341054,3502.0,3501.9,1.32059063]
[1641436207594,0.345,3502.1,3501.9,1.32059063]
[1641436208996,1.0850268,3502.7,3501.9,1.32059063]
[1641436209295,0.00682108,3502.6,3501.9,1.92059063]
[1641436209499,0.18419118,3502.3,3501.9,1.62059063]
[1641436209694,0.18419118,3502.3,3501.9,1.92059063]
[1641436209940,0.00454739,3502.2,3502.0,1.22907742]
[1641436210144,0.345,3503.9,3502.2,5.55]
[1641436210545,0.00227369,3502.6,3502.2,5.85]
[1641436210743,0.24727369,3503.9,3502.3,2.6]
[1641436210942,0.00170527,3502.5,3502.3,2.60170527]
[1641436211143,0.00170527,3502.5,3502.4,0.00113684]
[1641436211342,3.26953347,3502.2,3502.1,1.37498311]
[1641436211546,3.26953347,3502.2,3502.1,4.47498311]
[1641436211748,3.26953347,3502.2,3502.1,4.47668838]
[1641436211950,3.26953347,3502.2,3502.1,4.77668838]
[1641436212349,3.26953347,3502.2,3502.1,10.02668838]
[1641436212554,0.00170527,3502.5,3502.2,8.35]
[1641436212750,0.00170527,3502.5,3502.3,2.67584356]
[1641436212950,5.27e-06,3502.5,3502.3,2.67584356]
[1641436213151,0.7122474,3504.3,3502.4,6.3358]
[1641436213349,0.7122474,3504.3,3502.5,3.33072084]
[1641436213554,0.00852635,3504.2,3503.0,1.0]
[1641436213828,0.7122474,3504.3,3503.1,2.98460661]
[1641436213829,0.00795793,3504.1,3503.1,2.98460661]
[1641436214028,0.00795793,3504.1,3503.8,1.0]
[1641436214228,0.0073895,3504.0,3503.9,7.1467023]
[1641436214427,0.0073895,3504.0,3503.9,2.7967023]
[1641436214831,0.0073895,3504.0,3503.9,1.16324307]
[1641436215029,0.0073895,3504.0,3502.7,1.05179928]
[1641436215231,0.0073895,3504.0,3502.5,1.71310685]
[1641436215532,0.00682108,3503.9,3502.5,1.71310685]
[1641436215930,0.00625266,3503.8,3503.2,1.19663555]
[1641436216331,0.00568423,3503.7,3503.2,1.19663555]
[1641436216731,0.00511581,3503.6,3503.2,1.19663555]
[1641436216929,0.00511581,3503.6,3503.2,1.79663555]
[1641436217131,0.00454739,3503.5,3503.3,1.3996506]
[1641436217541,0.00397896,3503.4,3503.3,1.3996506]
[1641436218544,0.00397896,3503.4,3503.3,3.97510419]
[1641436218747,0.00397896,3503.4,3503.3,1.6996506]
[1641436218946,0.7122474,3504.3,3503.4,7.45]
[1641436219146,0.7122474,3504.3,3503.8,1.0]
[1641436219348,0.00454739,3504.2,3503.7,0.14264]
[1641436219549,0.00454739,3504.2,3503.7,3.04574177]
[1641436219749,0.7122474,3504.3,3503.7,3.09754105]
[1641436219750,0.00397897,3504.1,3503.7,3.09754105]
[1641436219953,0.7122474,3504.3,3503.9,5.8]
[1641436220148,0.7122474,3504.3,3503.9,0.6]
[1641436220149,0.00341054,3504.0,3503.9,0.6]
[1641436220348,0.00341054,3504.0,3503.9,1.01312]
[1641436220548,0.00341054,3504.0,3503.9,7.96425685]
[1641436221393,0.52414395,3504.3,3504.1,16.82261]
[1641436221591,0.52414395,3504.3,3504.2,10.53054741]
[1641436221792,40.0,3505.1,3504.3,6.1]
[1641436221991,40.0,3505.1,3504.4,0.71299]
[1641436222190,0.00170527,3505.0,3504.7,1.0]
[1641436222398,0.00170527,3505.0,3504.9,1.22982489]
[1641436222600,40.0,3505.1,3504.9,1.22982489]
[1641436224601,40.0,3505.1,3504.9,1.52982489]
[1641436224801,40.0,3505.1,3505.0,34.2]
[1641436224802,31.87489615,3505.1,3505.0,34.2]
[1641436225046,4.61554126,3505.1,3505.0,89.279932]
[1641436225251,0.7122474,3506.4,3505.1,8.75]
[1641436225453,0.7122474,3506.4,3505.8,0.01294024]
[1641436225652,0.7122474,3506.4,3506.2,1.0]
[1641436225653,0.00909477,3506.3,3506.2,1.0]
[1641436225851,0.00909477,3506.3,3506.2,1.3]
[1641436226052,0.00909477,3506.3,3506.2,0.3]
[1641436226351,0.00909477,3506.3,3506.2,0.6]
[1641436226654,0.00909477,3506.3,3506.2,1.51213239]
[1641436226852,0.00909477,3506.3,3506.2,1.81213239]
[1641436227052,0.00909477,3506.3,3506.2,2.81213239]
[1641436227253,0.00909477,3506.3,3506.2,3.11213239]
[1641436227858,0.7122474,3506.4,3506.3,5.8]
[1641436228254,3.741,3508.2,3506.4,2.6]
[1641436228454,3.741,3508.2,3506.6,0.71255]
[1641436228695,0.01023162,3508.1,3507.6,1.31075214]
[1641436228997,0.0096632,3508.0,3507.6,1.31075214]
[1641436229296,0.00909478,3507.9,3506.9,1.0]
[1641436229598,0.01206461,3508.4,3506.9,1.6]
[1641436229599,0.00852635,3507.8,3506.9,1.6]
[1641436230002,0.00795793,3507.7,3507.0,1.216825]
[1641436230405,0.00738951,3507.6,3506.9,2.82439297]
[1641436230601,0.00738951,3507.6,3507.5,1.26668646]
[1641436230803,1.37324943,3508.2,3507.5,1.26668646]
[1641436231102,0.0096632,3508.0,3507.5,1.26668646]
[1641436231502,0.00909478,3507.9,3507.5,1.26668646]
[1641436231903,0.00852635,3507.8,3507.5,1.26668646]
[1641436232303,3.65102772,3508.6,3507.5,1.26668646]
[1641436232304,0.00795793,3507.7,3507.5,1.26668646]
[1641436232756,2.60738951,3507.6,3507.5,1.26668646]
[1641436233156,2.60738951,3507.6,3506.6,0.71254]
[1641436233157,8.75738951,3507.6,3506.6,0.71254]
[1641436233362,8.75738951,3507.6,3505.6,1.1417]
[1641436233363,0.01232761,3507.4,3505.6,1.1417]
[1641436233556,0.01232761,3507.4,3505.4,2.24554316]
[1641436233757,0.01232761,3507.4,3505.7,0.00341054]
[1641436233758,0.00568424,3507.3,3505.7,0.00341054]
[1641436234057,0.01232761,3507.4,3505.5,0.00454739]
[1641436234058,0.00511581,3507.2,3505.5,0.00454739]
[1641436234457,0.00454739,3507.1,3506.7,1.27609812]
[1641436234856,0.01232761,3507.4,3506.7,1.27609812]
[1641436234857,0.00397897,3507.0,3506.7,1.27609812]
[1641436235257,0.00341054,3506.9,3506.7,1.27609812]
[1641436235674,0.00284212,3506.8,3506.7,2.37508496]
[1641436236299,7.16946114,3508.3,3506.7,2.67508496]
[1641436236300,6.00026114,3508.3,3506.7,2.67508496]
[1641436236496,2.30639032,3508.2,3506.7,2.37508496]
[1641436236697,0.00625266,3507.9,3507.7,1.19224105]
[1641436237102,8.75568423,3507.8,3507.7,1.19224105]
[1641436239205,8.75568423,3507.8,3506.7,1.09898684]
[1641436239404,8.75568423,3507.8,3505.9,1.42521]
[1641436239405,8.75568423,3507.8,3507.3,1.36116916]
[1641436239605,0.00511581,3507.7,3507.3,1.36116916]
[1641436240049,0.00454739,3507.6,3507.3,1.36116916]
[1641436240455,0.00397896,3507.5,3507.4,1.42303239]
[1641436240857,8.75397896,3507.5,3507.4,1.42303239]
[1641436241052,9.05397896,3507.5,3507.4,1.42303239]
[1641436242254,9.05397896,3507.5,3507.3,1.06945418]
[1641436242255,8.75,3507.4,3507.3,1.06945418]
[1641436242454,8.75,3507.4,3505.4,2.68789501]
[1641436242654,8.75852635,3507.4,3505.3,0.7726472]
[1641436242853,0.00795793,3507.3,3505.5,0.0022737]
[1641436243055,0.00795793,3507.3,3506.3,0.99966968]
[1641436243255,0.0073895,3507.2,3506.3,0.99966968]
[1641436243705,0.00682108,3507.1,3506.3,0.99966968]
[1641436243896,0.00682108,3507.1,3505.5,0.0022737]
[1641436243897,0.01249007,3507.0,3505.5,0.0022737]
[1641436244101,0.01249007,3507.0,3506.0,1.2224465]
[1641436244102,0.36374273,3507.0,3506.0,1.2224465]
[1641436244300,0.00568423,3506.9,3506.0,1.2224465]
[1641436244499,0.35068423,3506.9,3506.0,1.2224465]
[1641436244699,0.00511581,3506.8,3506.0,1.2224465]
[1641436245199,0.00454739,3506.7,3506.0,1.2224465]
[1641436245601,9.8079821,3506.7,3506.6,1.20009368]
[1641436245801,10.1079821,3506.7,3505.7,1.40360223]
[1641436246004,3.71075888,3506.6,3505.7,1.40360223]
[1641436246202,2.41075888,3506.6,3505.7,1.40360223]
[1641436246403,0.00341054,3506.5,3505.5,0.0022737]
[1641436246801,2.41075888,3506.6,3504.7,1.1426]
[1641436246802,0.00284212,3506.4,3504.8,0.00625266]
[1641436247004,0.00284212,3506.4,3504.9,2.11402726]
[1641436247303,12.973,3506.7,3505.7,1.35043346]
[1641436247304,0.00227369,3506.3,3505.7,1.35043346]
[1641436247551,0.00227369,3506.3,3505.0,0.00511581]
[1641436247750,1.0,3506.6,3505.0,0.00511581]
[1641436247751,0.00170527,3506.2,3505.0,0.00511581]
[1641436248157,0.00113685,3506.1,3505.0,0.00511581]
[1641436248560,0.00284212,3506.4,3505.0,0.00511581]
[1641436248756,0.00284212,3506.4,3505.5,1.19268073]
[1641436248959,0.00227369,3506.3,3505.5,1.19268073]
[1641436249159,0.00227369,3506.3,3505.6,0.00170527]
[1641436249461,0.00170527,3506.2,3505.6,0.00170527]
[1641436249860,0.00113685,3506.1,3505.6,0.00170527]
[1641436250062,0.00113685,3506.1,3505.7,1.2042602]
[1641436250261,0.00341054,3506.5,3505.7,1.2042602]
[1641436250659,0.00284212,3506.4,3505.7,1.2042602]
[1641436251063,0.01249007,3507.0,3505.7,1.5042602]
[1641436251064,0.00227369,3506.3,3505.7,1.5042602]
[1641436251303,0.00227369,3506.3,3505.7,1.8042602]
[1641436251505,0.00170527,3506.2,3505.7,1.8042602]
[1641436251904,0.00113685,3506.1,3505.8,1.29793305]
[1641436252305,0.00170527,3506.2,3505.8,1.29793305]
[1641436252605,0.00113685,3506.1,3505.8,1.29793305]
[1641436253005,0.00170527,3506.2,3505.9,2.73009069]
[1641436253208,0.00170527,3506.2,3505.9,0.14255]
[1641436253407,0.00113685,3506.1,3506.0,0.3563462]
[1641436253611,0.00113685,3506.1,3506.0,0.6563462]
[1641436254007,0.00113685,3506.1,3506.0,0.3]
[1641436256349,5.0,3506.3,3506.0,0.3]
[1641436260504,5.0,3506.3,3506.0,0.6]
[1641436261108,5.0,3506.3,3506.0,0.3]
[1641436262446,5.0,3506.3,3505.8,1.29793305]
[1641436262847,5.0,3506.3,3505.9,0.00113685]
[1641436264653,5.0,3506.3,3505.9,0.14369685]
[1641436265054,5.0,3506.3,3506.0,0.3563575]
[1641436265255,5.0,3506.3,3506.0,0.6563575]
[1641436265654,5.0,3506.3,3506.0,0.9563575]
[1641436265855,5.0,3506.3,3506.1,0.14254]
[1641436266712,3.7138,3508.2,3506.1,0.14254]
[1641436266907,6.22815824,3508.1,3507.0,0.14251]
[1641436267115,0.00625265,3507.2,3507.0,0.14251]
[1641436267510,0.00568423,3507.1,3507.0,2.87982399]
[1641436267912,0.00568423,3507.1,3507.0,3.53608849]
[1641436268113,0.00568423,3507.1,3507.0,3.17982399]
[1641436268315,0.00568423,3507.1,3507.0,1.4030087]
[1641436271149,0.00568423,3507.1,3507.0,1.7030087]
[1641436271350,0.00568423,3507.1,3507.0,2.0030087]
[1641436271549,0.00568423,3507.1,3507.0,1.4030087]
[1641436271751,0.00568423,3507.1,3507.0,1.7030087]
[1641436271954,0.00568423,3507.1,3507.0,2.0030087]
[1641436273159,0.00568423,3507.1,3507.0,3.0030087]
[1641436273359,0.00568423,3507.1,3507.0,2.0030087]
[1641436273560,0.00568423,3507.1,3507.0,3.0030087]
[1641436274002,0.00568423,3507.1,3507.0,2.0030087]
[1641436274201,0.00568423,3507.1,3507.0,3.0030087]
[1641436274404,0.00568423,3507.1,3507.0,2.0030087]
[1641436274610,7.6442474,3508.6,3507.0,3.0030087]
[1641436274803,7.6442474,3508.6,3507.8,0.3562084]
[1641436275006,0.00795793,3508.5,3508.1,1.2523984]
[1641436275404,0.0073895,3508.4,3507.9,1.37057214]
[1641436275803,0.00682108,3508.3,3507.0,0.3]
[1641436276005,0.00682108,3508.3,3507.2,0.3562697]
[1641436276203,0.00625266,3508.2,3507.2,0.6562697]
[1641436276604,0.00568423,3508.1,3507.2,0.6562697]
[1641436276804,0.00568423,3508.1,3507.9,1.12995832]
[1641436277113,6.05511581,3508.0,3507.9,1.12995832]
[1641436278953,6.05511581,3508.0,3507.1,1.23464841]
[1641436279354,0.00454739,3507.9,3507.1,1.23464841]
[1641436279761,0.00397896,3507.8,3507.1,1.23464841]
[1641436279954,0.00397896,3507.8,3507.6,1.32719592]
[1641436280155,3.05341054,3507.7,3507.6,1.32719592]
[1641436280358,0.00341054,3507.7,3507.6,1.32719592]
[1641436280957,3.85341054,3507.7,3507.6,1.05759592]
[1641436281204,0.00341054,3507.7,3507.6,1.05759592]
[1641436282708,2.65341054,3507.7,3507.6,1.05759592]
[1641436283912,0.00341054,3507.7,3507.6,1.35759592]
[1641436284313,0.00341054,3507.7,3507.6,1.65759592]
[1641436284954,0.00341054,3507.7,3507.6,0.3]
[1641436285155,0.00341054,3507.7,3507.3,0.6]
[1641436285356,0.00341054,3507.7,3507.2,0.3]
[1641436285556,0.00284212,3507.6,3507.3,0.3]
[1641436285756,0.00284212,3507.6,3507.2,0.3]
[1641436286056,0.00227369,3507.5,3507.3,1.48633527]
[1641436286456,1.40192471,3508.4,3507.2,0.3]
[1641436286457,0.00170527,3507.4,3507.2,0.3]
[1641436286656,0.00170527,3507.4,3507.3,0.3]
[1641436286856,0.00113685,3507.3,3507.0,0.44252]
[1641436287057,0.00170527,3507.4,3507.0,0.14252]
[1641436287258,0.00568423,3508.1,3507.0,0.44252]
[1641436287461,0.00113685,3507.3,3507.2,1.4260389]
[1641436287657,0.00511581,3508.0,3507.2,1.7260389]
[1641436287863,0.00113685,3507.3,3507.2,1.7260389]
[1641436288063,0.00454739,3507.9,3507.2,1.7260389]
[1641436288262,6.8822474,3508.6,3507.2,1.7260389]
[1641436288459,6.8822474,3508.6,3507.3,0.3]
[1641436288710,0.00568423,3508.1,3507.3,0.3]
[1641436289110,0.00511581,3508.0,3507.8,1.5049992]
[1641436289514,0.00454739,3507.9,3507.8,1.8049992]
[1641436290018,0.00454739,3507.9,3507.8,2.1049992]
[1641436290214,0.00454739,3507.9,3507.8,1.8049992]
[1641436290415,0.00454739,3507.9,3507.8,1.5049992]
[1641436290816,0.00454739,3507.9,3507.8,1.8049992]
[1641436292552,3.35454739,3507.9,3507.8,1.8049992]
[1641436293351,3.35454739,3507.9,3507.5,0.1425]
[1641436293553,3.35454739,3507.9,3506.8,0.9975877]
[1641436293751,3.35454739,3507.9,3506.1,2.57653366]
[1641436293752,0.00397896,3507.8,3506.1,2.57653366]
[1641436293953,0.00397896,3507.8,3506.9,0.00113685]
[1641436294151,0.00341054,3507.7,3506.9,0.00113685]
[1641436294351,0.00341054,3507.7,3506.2,0.00511581]
[1641436294552,1.51933022,3507.4,3506.6,1.17887945]
[1641436294755,1.51933022,3507.4,3506.6,1.47887945]